fUST/lending_fUST_20250221
["ID","MTS","AMOUNT","RATE_DAILY","PERIOD"]
[353897853,1740118248063,-308.01581002,0.00014272,2]
[353897854,1740118248072,-500.0,0.00014272,2]
[353897855,1740118248082,-500.0,0.00014272,2]
[353897856,1740118248091,-500.0,0.00014272,2]
[353897857,1740118248100,-294.40602353,0.00014272,2]
[353897858,1740118248110,-500.0,0.00014273,2]
[353897859,1740118248119,-500.0,0.00014273,2]
[353897860,1740118248128,-500.0,0.00014273,2]
[353897861,1740118248138,-500.0,0.00014273,2]
[353897862,1740118248148,-500.0,0.00014273,2]
[353897863,1740118248157,-560.81,0.00014273,2]
[353897864,1740118248167,-500.0,0.00014273,2]
[353897865,1740118248176,-500.0,0.00014273,2]
[353897866,1740118248185,-659.11,0.00014273,2]
[353897867,1740118248195,-500.0,0.00014273,2]
[353897868,1740118248205,-500.0,0.00014273,2]
[353897869,1740118248214,-500.0,0.00014273,2]
[353897870,1740118248223,-788.64,0.00014273,2]
[353897871,1740118248232,-500.0,0.00014273,2]
[353897872,1740118248242,-500.0,0.00014273,2]
[353897873,1740118248251,-500.0,0.00014273,2]
[353897874,1740118248260,-767.86,0.00014273,2]
[353897875,1740118248269,-500.0,0.00014273,2]
[353897876,1740118248281,-577.33,0.00014273,2]
[353897877,1740118248290,-500.0,0.00014273,2]
[353897878,1740118248299,-500.0,0.00014273,2]
[353897879,1740118248309,-500.0,0.00014273,2]
[353897880,1740118248318,-500.0,0.00014273,2]
[353897881,1740118248327,-500.0,0.00014273,2]
[353897882,1740118248337,-500.0,0.00014273,2]
[353897883,1740118248346,-500.0,0.00014273,2]
[353897884,1740118248355,-500.0,0.00014273,2]
[353897885,1740118248365,-500.0,0.00014273,2]
[353897886,1740118248375,-5115.52,0.00014273,2]
[353897887,1740118248385,-583.16,0.00014273,2]
[353897888,1740118248394,-500.0,0.00014273,2]
[353897889,1740118248404,-1763.15,0.00014273,2]
[353897890,1740118248413,-12832.81,0.00014273,2]
[353897891,1740118248423,-2477.03,0.00014273,2]
[353897892,1740118248432,-571.96,0.00014273,2]
[353897893,1740118248442,-1632.63,0.00014273,2]
[353897894,1740118248451,-970.01,0.00014273,2]
[353897895,1740118248460,-1658.55,0.00014273,2]
[353897896,1740118248469,-500.0,0.00014273,2]
[353897897,1740118248479,-500.0,0.00014273,2]
[353897898,1740118248488,-889.73,0.00014273,2]
[353897899,1740118248498,-500.0,0.00014273,2]
[353897900,1740118248507,-500.0,0.00014273,2]
[353897901,1740118248516,-500.0,0.00014273,2]
[353897902,1740118248525,-500.0,0.00014273,2]
[353897903,1740118248534,-608.411473,0.00014273,2]
[353897904,1740118248544,-500.0,0.00014273,2]
[353897905,1740118248555,-1532.0,0.00014273,2]
[353897906,1740118248565,-687.09,0.00014273,2]
[353897907,1740118248574,-500.0,0.00014273,2]
[353897908,1740118248583,-780.59,0.00014273,2]
[353897909,1740118248592,-995.37,0.00014273,2]
[353897910,1740118248602,-500.0,0.00014273,2]
[353897911,1740118248611,-2332.34,0.00014273,2]
[353897912,1740118248621,-500.0,0.00014273,2]
[353897913,1740118248630,-1414.88,0.00014273,2]
[353897914,1740118248639,-4367.26,0.00014273,2]
[353897915,1740118248648,-23100.61,0.00014273,2]
[353897916,1740118248658,-1658.09,0.00014273,2]
[353897917,1740118248667,-1266.88,0.00014273,2]
[353897918,1740118248676,-500.0,0.00014273,2]
[353897919,1740118248686,-10121.5,0.00014273,2]
[353897920,1740118248695,-891.26,0.00014273,2]
[353897921,1740118248706,-2055.72,0.00014273,2]
[353897922,1740118248715,-630.32,0.00014273,2]
[353897923,1740118248725,-2802.08,0.00014273,2]
[353897924,1740118248735,-1334.14,0.00014273,2]
[353897925,1740118248744,-500.0,0.00014273,2]
[353897926,1740118248754,-623.31,0.00014273,2]
[353897927,1740118248763,-760.7,0.00014273,2]
[353897928,1740118248772,-900.55,0.00014273,2]
[353897929,1740118248782,-500.0,0.00014273,2]
[353897930,1740118248791,-2021.19,0.00014273,2]
[353897931,1740118248800,-748.09,0.00014273,2]
[353897932,1740118248810,-500.0,0.00014273,2]
[353897933,1740118248819,-500.0,0.00014273,2]
[353897934,1740118248829,-500.0,0.00014273,2]
[353897935,1740118248838,-1466.85,0.00014273,2]
[353897936,1740118248847,-500.0,0.00014273,2]
[353897937,1740118248857,-500.0,0.00014273,2]
[353897938,1740118248866,-500.0,0.00014273,2]
[353897939,1740118248875,-1171.71,0.00014273,2]
[353897940,1740118248885,-500.0,0.00014273,2]
[353897941,1740118248894,-500.0,0.00014273,2]
[353897942,1740118248904,-4391.14,0.00014273,2]
[353897943,1740118248913,-500.0,0.00014273,2]
[353897944,1740118248922,-500.0,0.00014273,2]
[353897945,1740118248931,-521.58,0.00014273,2]
[353897946,1740118248941,-500.0,0.00014273,2]
[353897947,1740118248950,-7438.69753278,0.00014274,2]
[353897948,1740118248959,-151.0,0.000143,2]
[353897949,1740118248968,-11842.4323202,0.00014314,2]
[353897950,1740118248978,-670.159,0.00014327,2]
[353897951,1740118248991,-157.9585571,0.00014338,2]
[353897952,1740118249001,-157.9585571,0.00014338,2]
[353897953,1740118249010,-157.9585571,0.00014338,2]
[353897954,1740118249019,-157.9585571,0.00014338,2]
[353897955,1740118249030,-157.9585571,0.00014338,2]
[353897956,1740118249040,-157.95,0.00014338,2]
[353897957,1740118249050,-653.87299429,0.00014338,2]
[353897958,1740118249059,-653.87299429,0.00014338,2]
[353897959,1740118249071,-653.87299429,0.00014338,2]
[353897960,1740118249081,-653.87299429,0.00014338,2]
[353897961,1740118249090,-653.87299429,0.00014338,2]
[353897962,1740118249099,-653.87299429,0.00014338,2]
[353897963,1740118249109,-653.87299429,0.00014338,2]
[353897964,1740118249118,-653.87299429,0.00014338,2]
[353897965,1740118249128,-653.87299429,0.00014338,2]
[353897966,1740118249137,-653.87299429,0.00014338,2]
[353897967,1740118249146,-653.87299429,0.00014338,2]
[353897968,1740118249156,-653.87299429,0.00014338,2]
[353897969,1740118249166,-653.87299429,0.00014338,2]
[353897970,1740118249175,-653.87299429,0.00014338,2]
[353897971,1740118249185,-653.87299429,0.00014338,2]
[353897972,1740118249194,-653.87299429,0.00014338,2]
[353897973,1740118249204,-653.87299429,0.00014338,2]
[353897974,1740118249214,-653.87299429,0.00014338,2]
[353897975,1740118249223,-653.87299429,0.00014338,2]
[353897976,1740118249233,-653.87,0.00014338,2]
[353897977,1740118249243,-865.29765616,0.00014338,2]
[353897978,1740118249253,-865.29765616,0.00014338,2]
[353897979,1740118249263,-865.29765616,0.00014338,2]
[353897980,1740118249272,-865.29765616,0.00014338,2]
[353897981,1740118249281,-865.29765616,0.00014338,2]
[353897982,1740118249291,-865.29765616,0.00014338,2]
[353897983,1740118249301,-865.29765616,0.00014338,2]
[353897984,1740118249311,-865.29765616,0.00014338,2]
[353897985,1740118249320,-865.29765616,0.00014338,2]
[353897986,1740118249330,-865.29765616,0.00014338,2]
[353897987,1740118249339,-865.29765616,0.00014338,2]
[353897988,1740118249348,-865.29765616,0.00014338,2]
[353897989,1740118249357,-865.29765616,0.00014338,2]
[353897990,1740118249366,-865.29765616,0.00014338,2]
[353897991,1740118249376,-865.29765616,0.00014338,2]
[353897992,1740118249385,-865.29765616,0.00014338,2]
[353897993,1740118249395,-865.29765616,0.00014338,2]
[353897994,1740118249404,-865.29765616,0.00014338,2]
[353897995,1740118249414,-865.29765616,0.00014338,2]
[353897996,1740118249424,-865.29,0.00014338,2]
[353897997,1740118249433,-95572.33930617,0.00014356,5]
[353897998,1740118249443,-500.0,0.00014356,2]
[353897999,1740118249453,-500.0,0.00014356,2]
[353898000,1740118249462,-500.0,0.00014356,2]
[353898001,1740118249472,-500.0,0.00014356,2]
[353898002,1740118249481,-500.0,0.00014356,2]
[353898003,1740118249491,-560.81,0.00014356,2]
[353898004,1740118249501,-500.0,0.00014356,2]
[353898005,1740118249511,-500.0,0.00014356,2]
[353898006,1740118249520,-659.11,0.00014356,2]
[353898007,1740118249529,-500.0,0.00014356,2]
[353898008,1740118249538,-500.0,0.00014356,2]
[353898009,1740118249548,-500.0,0.00014356,2]
[353898010,1740118249558,-788.64,0.00014356,2]
[353898011,1740118249568,-500.0,0.00014356,2]
[353898012,1740118249577,-500.0,0.00014356,2]
[353898013,1740118249587,-500.0,0.00014356,2]
[353898014,1740118249596,-767.86,0.00014356,2]
[353898015,1740118249606,-500.0,0.00014356,2]
[353898016,1740118249615,-577.33,0.00014356,2]
[353898017,1740118249624,-500.0,0.00014356,2]
[353898018,1740118249634,-500.0,0.00014356,2]
[353898019,1740118249644,-500.0,0.00014356,2]
[353898020,1740118249653,-500.0,0.00014356,2]
[353898021,1740118249663,-500.0,0.00014356,2]
[353898022,1740118249672,-500.0,0.00014356,2]
[353898023,1740118249682,-500.0,0.00014356,2]
[353898024,1740118249692,-500.0,0.00014356,2]
[353898025,1740118249703,-500.0,0.00014356,2]
[353898026,1740118249714,-5115.52,0.00014356,2]
[353898027,1740118249725,-583.16,0.00014356,2]
[353898028,1740118249735,-500.0,0.00014356,2]
[353898029,1740118249744,-1763.15,0.00014356,2]
[353898030,1740118249754,-12832.81,0.00014356,2]
[353898031,1740118249763,-2477.03,0.00014356,2]
[353898032,1740118249773,-571.96,0.00014356,2]
[353898033,1740118249783,-1632.63,0.00014356,2]
[353898034,1740118249793,-970.01,0.00014356,2]
[353898035,1740118249802,-1658.55,0.00014356,2]
[353898036,1740118249812,-500.0,0.00014356,2]
[353898037,1740118249822,-500.0,0.00014356,2]
[353898038,1740118249833,-889.73,0.00014356,2]
[353898039,1740118249842,-500.0,0.00014356,2]
[353898040,1740118249852,-500.0,0.00014356,2]
[353898041,1740118249862,-500.0,0.00014356,2]
[353898042,1740118249871,-500.0,0.00014356,2]
[353898043,1740118249880,-500.0,0.00014356,2]
[353898044,1740118249889,-1532.0,0.00014356,2]
[353898045,1740118249898,-687.09,0.00014356,2]
[353898046,1740118249908,-500.0,0.00014356,2]
[353898047,1740118249917,-780.59,0.00014356,2]
[353898048,1740118249926,-995.37,0.00014356,2]
[353898049,1740118249935,-500.0,0.00014356,2]
[353898050,1740118249944,-2332.34,0.00014356,2]
[353898051,1740118249953,-500.0,0.00014356,2]
[353898052,1740118249962,-1414.88,0.00014356,2]
[353898053,1740118249971,-4367.26,0.00014356,2]
[353898054,1740118249980,-23100.61,0.00014356,2]
[353898055,1740118250084,-1658.09,0.00014356,2]
[353898056,1740118250093,-1266.88,0.00014356,2]
[353898057,1740118250103,-500.24904968,0.00014356,2]
[353898058,1740118250113,-10121.5,0.00014356,2]
[353898059,1740118250122,-891.26,0.00014356,2]
[353898060,1740118250132,-2055.72,0.00014356,2]
[353898061,1740118250142,-2802.08,0.00014356,2]
[353898062,1740118250152,-630.32,0.00014356,2]
[353898063,1740118250162,-1334.14,0.00014356,2]
[353898064,1740118250172,-500.0,0.00014356,2]
[353898065,1740118250181,-623.31,0.00014356,2]
[353898066,1740118250190,-760.7,0.00014356,2]
[353898067,1740118250199,-900.55,0.00014356,2]
[353898068,1740118250209,-343.97326887,0.00014356,2]
[353898069,1740118250219,-2021.19,0.00014356,2]
[353898070,1740118250228,-748.09,0.00014356,2]
[353898071,1740118250238,-500.0,0.00014356,2]
[353898072,1740118250248,-500.0,0.00014356,2]
[353898073,1740118250258,-500.0,0.00014356,2]
[353898074,1740118250267,-1466.85,0.00014356,2]
[353898075,1740118250277,-500.0,0.00014356,2]
[353898076,1740118250287,-500.0,0.00014356,2]
[353898077,1740118250297,-500.0,0.00014356,2]
[353898078,1740118250308,-1171.71,0.00014356,2]
[353898079,1740118250318,-500.0,0.00014356,2]
[353898080,1740118250328,-500.0,0.00014356,2]
[353898081,1740118250338,-151.0,0.00014356,2]
[353898082,1740118250348,-4391.14,0.00014356,2]
[353898083,1740118250358,-500.0,0.00014356,2]
[353898084,1740118250368,-151.0,0.00014356,2]
[353898085,1740118250377,-500.0,0.00014356,2]
[353898086,1740118250387,-521.58,0.00014356,2]
[353898087,1740118250396,-500.0,0.00014356,2]
[353898088,1740118250406,-151.0,0.000144,2]
[353898089,1740118250415,-258.07030426,0.00014419,2]
[353898090,1740118250425,-3448.28708649,0.0001442,2]
[353898091,1740118250435,-500.0,0.00014424,7]
[353898092,1740118250444,-500.0,0.00014424,7]
[353898093,1740118250454,-500.0,0.00014424,7]
[353898094,1740118250464,-500.0,0.00014424,7]
[353898095,1740118250474,-500.0,0.00014424,7]
[353898096,1740118250483,-500.0,0.00014424,7]
[353898097,1740118250493,-500.0,0.00014424,7]
[353898098,1740118250503,-500.0,0.00014424,7]
[353898099,1740118250513,-500.0,0.00014424,7]
[353898100,1740118250523,-639.03,0.00014424,7]
[353898101,1740118250532,-151.0,0.00014424,2]
[353898102,1740118250542,-500.0,0.00014438,2]
[353898103,1740118250553,-500.0,0.00014438,2]
[353898104,1740118250564,-500.0,0.00014438,2]
[353898105,1740118250574,-500.0,0.00014438,2]
[353898106,1740118250584,-560.81,0.00014438,2]
[353898107,1740118250594,-500.0,0.00014438,2]
[353898108,1740118250603,-500.0,0.00014438,2]
[353898109,1740118250613,-659.11,0.00014438,2]
[353898110,1740118250623,-500.0,0.00014438,2]
[353898111,1740118250632,-500.0,0.00014438,2]
[353898112,1740118250642,-500.0,0.00014438,2]
[353898113,1740118250651,-788.64,0.00014438,2]
[353898114,1740118250660,-500.0,0.00014438,2]
[353898115,1740118250670,-500.0,0.00014438,2]
[353898116,1740118250679,-500.0,0.00014438,2]
[353898117,1740118250688,-767.86,0.00014438,2]
[353898118,1740118250698,-500.0,0.00014438,2]
[353898119,1740118250707,-577.33,0.00014438,2]
[353898120,1740118250717,-500.0,0.00014438,2]
[353898121,1740118250726,-500.0,0.00014438,2]
[353898122,1740118250735,-232.64796735,0.00014438,2]
[353898123,1740118250745,-510.04550111,0.00014438,2]
[353898124,1740118250754,-500.0,0.00014438,2]
[353898125,1740118250763,-500.0,0.00014438,2]
[353898126,1740118250773,-151.0,0.00014438,2]
[353898127,1740118250783,-500.0,0.00014438,2]
[353898128,1740118250793,-548.51021941,0.00014438,2]
[353898129,1740118250802,-500.0,0.00014438,2]
[353898130,1740118250813,-5115.52,0.00014438,2]
[353898131,1740118250822,-583.16,0.00014438,2]
[353898132,1740118250832,-500.0,0.00014438,2]
[353898133,1740118250841,-1763.15,0.00014438,2]
[353898134,1740118250852,-12832.81,0.00014438,2]
[353898135,1740118250862,-2477.03,0.00014438,2]
[353898136,1740118250871,-571.96,0.00014438,2]
[353898137,1740118250881,-1632.63,0.00014438,2]
[353898138,1740118250891,-970.01,0.00014438,2]
[353898139,1740118250900,-1658.55,0.00014438,2]
[353898140,1740118250910,-500.0,0.00014438,2]
[353898141,1740118250919,-500.0,0.00014438,2]
[353898142,1740118250929,-889.73,0.00014438,2]
[353898143,1740118250938,-500.0,0.00014438,2]
[353898144,1740118250948,-500.0,0.00014438,2]
[353898145,1740118250958,-500.0,0.00014438,2]
[353898146,1740118250967,-500.0,0.00014438,2]
[353898147,1740118250976,-500.0,0.00014438,2]
[353898148,1740118250988,-1532.0,0.00014438,2]
[353898149,1740118250998,-687.09,0.00014438,2]
[353898150,1740118251007,-500.0,0.00014438,2]
[353898151,1740118251017,-780.59,0.00014438,2]
[353898152,1740118251027,-995.37,0.00014438,2]
[353898153,1740118251036,-500.0,0.00014438,2]
[353898154,1740118251046,-2332.34,0.00014438,2]
[353898155,1740118251055,-500.0,0.00014438,2]
[353898156,1740118251067,-1414.88,0.00014438,2]
[353898157,1740118251076,-4367.26,0.00014438,2]
[353898158,1740118251085,-23100.61,0.00014438,2]
[353898159,1740118251094,-1658.09,0.00014438,2]
[353898160,1740118251104,-1266.88,0.00014438,2]
[353898161,1740118251114,-10121.5,0.00014438,2]
[353898162,1740118251123,-891.26,0.00014438,2]
[353898163,1740118251133,-2055.72,0.00014438,2]
[353898164,1740118251142,-2802.08,0.00014438,2]
[353898165,1740118251151,-630.32,0.00014438,2]
[353898166,1740118251160,-1334.14,0.00014438,2]
[353898167,1740118251169,-500.0,0.00014438,2]
[353898168,1740118251178,-623.31,0.00014438,2]
[353898169,1740118251188,-760.7,0.00014438,2]
[353898170,1740118251198,-900.55,0.00014438,2]
[353898171,1740118251207,-2021.19,0.00014438,2]
[353898172,1740118251216,-748.09,0.00014438,2]
[353898173,1740118251226,-500.0,0.00014438,2]
[353898174,1740118251235,-500.0,0.00014438,2]
[353898175,1740118251244,-500.0,0.00014438,2]
[353898176,1740118251254,-1466.85,0.00014438,2]
[353898177,1740118251263,-500.0,0.00014438,2]
[353898178,1740118251272,-500.0,0.00014438,2]
[353898179,1740118251281,-500.0,0.00014438,2]
[353898180,1740118251292,-1171.71,0.00014438,2]
[353898181,1740118251301,-500.0,0.00014438,2]
[353898182,1740118251311,-500.0,0.00014438,2]
[353898183,1740118251320,-4391.14,0.00014438,2]
[353898184,1740118251329,-487.08411756,0.00014438,2]
[353898185,1740118251339,-500.0,0.00014438,2]
[353898186,1740118251349,-521.58,0.00014438,2]
[353898187,1740118251359,-500.0,0.00014438,2]
[353898188,1740118251369,-166.321007,0.0001445,5]
[353898189,1740118251379,-160.0,0.00014473,3]
[353898190,1740118251388,-151.0,0.000145,2]
[353898191,1740118251398,-500.0,0.0001452,2]
[353898192,1740118251408,-500.0,0.0001452,2]
[353898193,1740118251417,-500.0,0.0001452,2]
[353898194,1740118251427,-500.0,0.0001452,2]
[353898195,1740118251436,-560.81,0.0001452,2]
[353898196,1740118251446,-500.0,0.0001452,2]
[353898197,1740118251455,-500.0,0.0001452,2]
[353898198,1740118251464,-659.11,0.0001452,2]
[353898199,1740118251475,-500.0,0.0001452,2]
[353898200,1740118251484,-500.0,0.0001452,2]
[353898201,1740118251494,-500.0,0.0001452,2]
[353898202,1740118251504,-788.64,0.0001452,2]
[353898203,1740118251513,-219.05290424,0.0001452,2]
[353898204,1740118251523,-500.0,0.0001452,2]
[353898205,1740118251532,-500.0,0.0001452,2]
[353898206,1740118251542,-767.86,0.0001452,2]
[353898207,1740118251553,-500.0,0.0001452,2]
[353898208,1740118251563,-577.33,0.0001452,2]
[353898209,1740118251574,-500.0,0.0001452,2]
[353898210,1740118251583,-500.0,0.0001452,2]
[353898211,1740118251593,-500.0,0.0001452,2]
[353898212,1740118251603,-500.0,0.0001452,2]
[353898213,1740118251613,-521.20982767,0.0001452,2]
[353898214,1740118251622,-500.0,0.0001452,2]
[353898215,1740118251632,-5115.52,0.0001452,2]
[353898216,1740118251641,-583.16,0.0001452,2]
[353898217,1740118251651,-500.0,0.0001452,2]
[353898218,1740118251661,-1763.15,0.0001452,2]
[353898219,1740118251670,-12832.81,0.0001452,2]
[353898220,1740118251680,-2477.03,0.0001452,2]
[353898221,1740118251690,-571.96,0.0001452,2]
[353898222,1740118251699,-1632.63,0.0001452,2]
[353898223,1740118251709,-970.01,0.0001452,2]
[353898224,1740118251718,-1658.55,0.0001452,2]
[353898225,1740118251728,-500.0,0.0001452,2]
[353898226,1740118251738,-500.0,0.0001452,2]
[353898227,1740118251747,-889.73,0.0001452,2]
[353898228,1740118251757,-500.0,0.0001452,2]
[353898229,1740118251767,-500.0,0.0001452,2]
[353898230,1740118251776,-500.0,0.0001452,2]
[353898231,1740118251785,-500.0,0.0001452,2]
[353898232,1740118251795,-500.0,0.0001452,2]
[353898233,1740118251805,-1532.0,0.0001452,2]
[353898234,1740118251815,-687.09,0.0001452,2]
[353898235,1740118251825,-500.0,0.0001452,2]
[353898236,1740118251834,-780.59,0.0001452,2]
[353898237,1740118251843,-995.37,0.0001452,2]
[353898238,1740118251853,-500.0,0.0001452,2]
[353898239,1740118251862,-2332.34,0.0001452,2]
[353898240,1740118251871,-500.0,0.0001452,2]
[353898241,1740118251881,-1414.88,0.0001452,2]
[353898242,1740118251890,-4367.26,0.0001452,2]
[353898243,1740118251899,-23100.61,0.0001452,2]
[353898244,1740118251909,-1658.09,0.0001452,2]
[353898245,1740118251918,-1266.88,0.0001452,2]
[353898246,1740118251928,-10121.5,0.0001452,2]
[353898247,1740118251937,-891.26,0.0001452,2]
[353898248,1740118251946,-2055.72,0.0001452,2]
[353898249,1740118251956,-2802.08,0.0001452,2]
[353898250,1740118251965,-630.32,0.0001452,2]
[353898251,1740118251975,-1334.14,0.0001452,2]
[353898252,1740118251986,-500.0,0.0001452,2]
[353898253,1740118251995,-623.31,0.0001452,2]
[353898254,1740118252005,-760.7,0.0001452,2]
[353898255,1740118252015,-900.55,0.0001452,2]
[353898256,1740118252025,-2021.19,0.0001452,2]
[353898257,1740118252037,-748.09,0.0001452,2]
[353898258,1740118252048,-500.0,0.0001452,2]
[353898259,1740118252059,-506.03743178,0.0001452,2]
[353898260,1740118252068,-500.0,0.0001452,2]
[353898261,1740118252079,-1466.85,0.0001452,2]
[353898262,1740118252088,-507.11130393,0.0001452,2]
[353898263,1740118252098,-500.0,0.0001452,2]
[353898264,1740118252107,-500.0,0.0001452,2]
[353898265,1740118252117,-1171.71,0.0001452,2]
[353898266,1740118252127,-500.0,0.0001452,2]
[353898267,1740118252136,-500.0,0.0001452,2]
[353898268,1740118252146,-4391.14,0.0001452,2]
[353898269,1740118252156,-500.0,0.0001452,2]
[353898270,1740118252165,-521.58,0.0001452,2]
[353898271,1740118252175,-500.0,0.0001452,2]
[353898272,1740118252184,-168.40801011,0.00014548,2]
[353898273,1740118252194,-160.804693,0.00014556,6]
[353898274,1740118252204,-151.0,0.000146,2]
[353898275,1740118252213,-151.0,0.00014601,2]
[353898276,1740118252223,-170.200498,0.00014601,2]
[353898277,1740118252233,-170.200498,0.00014601,2]
[353898278,1740118252242,-500.0,0.00014602,2]
[353898279,1740118252253,-500.0,0.00014602,2]
[353898280,1740118252262,-500.0,0.00014602,2]
[353898281,1740118252272,-500.0,0.00014602,2]
[353898282,1740118252281,-560.81,0.00014602,2]
[353898283,1740118252290,-500.0,0.00014602,2]
[353898284,1740118252299,-500.0,0.00014602,2]
[353898285,1740118252309,-659.11,0.00014602,2]
[353898286,1740118252319,-500.0,0.00014602,2]
[353898287,1740118252329,-500.0,0.00014602,2]
[353898288,1740118252338,-500.0,0.00014602,2]
[353898289,1740118252347,-788.64,0.00014602,2]
[353898290,1740118252450,-500.0,0.00014602,2]
[353898291,1740118252460,-500.0,0.00014602,2]
[353898292,1740118252469,-767.86,0.00014602,2]
[353898293,1740118252478,-500.0,0.00014602,2]
[353898294,1740118252488,-577.33,0.00014602,2]
[353898295,1740118252497,-500.0,0.00014602,2]
[353898296,1740118252507,-500.0,0.00014602,2]
[353898297,1740118252516,-500.0,0.00014602,2]
[353898298,1740118252526,-500.0,0.00014602,2]
[353898299,1740118252548,-151.0,0.00014602,2]
[353898300,1740118252559,-500.0,0.00014602,2]
[353898301,1740118252569,-5115.52,0.00014602,2]
[353898302,1740118252579,-583.16,0.00014602,2]
[353898303,1740118252590,-500.0,0.00014602,2]
[353898304,1740118252600,-1763.15,0.00014602,2]
[353898305,1740118252610,-12832.81,0.00014602,2]
[353898306,1740118252620,-2477.03,0.00014602,2]
[353898307,1740118252630,-571.96,0.00014602,2]
[353898308,1740118252640,-1632.63,0.00014602,2]
[353898309,1740118252650,-970.01,0.00014602,2]
[353898310,1740118252661,-1658.55,0.00014602,2]
[353898311,1740118252672,-507.07882964,0.00014602,2]
[353898312,1740118252682,-500.0,0.00014602,2]
[353898313,1740118252692,-889.73,0.00014602,2]
[353898314,1740118252703,-500.0,0.00014602,2]
[353898315,1740118252713,-500.0,0.00014602,2]
[353898316,1740118252724,-337.8382426,0.00014602,2]
[353898317,1740118252735,-500.0,0.00014602,2]
[353898318,1740118252745,-500.0,0.00014602,2]
[353898319,1740118252755,-1532.0,0.00014602,2]
[353898320,1740118252765,-687.09,0.00014602,2]
[353898321,1740118252776,-500.0,0.00014602,2]
[353898322,1740118252786,-780.59,0.00014602,2]
[353898323,1740118252796,-995.37,0.00014602,2]
[353898324,1740118252806,-514.52457317,0.00014602,2]
[353898325,1740118252816,-2332.34,0.00014602,2]
[353898326,1740118252825,-500.0,0.00014602,2]
[353898327,1740118252836,-1414.88,0.00014602,2]
[353898328,1740118252846,-4367.26,0.00014602,2]
[353898329,1740118252856,-23100.61,0.00014602,2]
[353898330,1740118252867,-1658.09,0.00014602,2]
[353898331,1740118252876,-1266.88,0.00014602,2]
[353898332,1740118252887,-10121.5,0.00014602,2]
[353898333,1740118252896,-891.26,0.00014602,2]
[353898334,1740118252907,-2055.72,0.00014602,2]
[353898335,1740118252916,-2802.08,0.00014602,2]
[353898336,1740118252925,-630.32,0.00014602,2]
[353898337,1740118252935,-1334.14,0.00014602,2]
[353898338,1740118252944,-500.0,0.00014602,2]
[353898339,1740118252954,-623.31,0.00014602,2]
[353898340,1740118252964,-760.7,0.00014602,2]
[353898341,1740118252974,-900.55,0.00014602,2]
[353898342,1740118252985,-2021.19,0.00014602,2]
[353898343,1740118252996,-748.09,0.00014602,2]
[353898344,1740118253006,-500.0,0.00014602,2]
[353898345,1740118253016,-500.0,0.00014602,2]
[353898346,1740118253025,-1466.85,0.00014602,2]
[353898347,1740118253037,-616.09117246,0.00014602,2]
[353898348,1740118253046,-500.0,0.00014602,2]
[353898349,1740118253056,-1171.71,0.00014602,2]
[353898350,1740118253069,-500.0,0.00014602,2]
[353898351,1740118253079,-500.0,0.00014602,2]
[353898352,1740118253090,-151.0,0.00014602,2]